bitfinex/quotes_SOLUSD_20240705
["timestamp","ask_amount","ask_price","bid_price","bid_amount"]
[1720217649566,0.17,134.81,134.78,7.4194]
[1720217650363,106.1717,134.8,134.74,55.6614]
[1720217650598,113.47,134.78,134.74,25.9745]
[1720217650897,0.17,134.77,134.74,25.9745]
[1720217651089,0.17,134.77,134.75,7.4211]
[1720217651275,0.17,134.78,134.75,7.4211]
[1720217651671,0.17,134.79,134.75,7.4211]
[1720217651880,0.17,134.79,134.76,7.4203]
[1720217652505,0.17,134.79,134.75,7.4209]
[1720217652506,13.64,134.79,134.75,7.4209]
[1720217653280,13.47,134.78,134.75,7.4209]
[1720217653483,0.17,134.77,134.75,7.4209]
[1720217657703,0.17,134.78,134.75,7.4209]
[1720217658881,0.17,134.78,134.75,6.9209]
[1720217659083,0.17,134.78,134.76,7.4205]
[1720217659815,0.17,134.78,134.77,7.42]
[1720217660014,6.1717,134.8,134.77,7.4199]
[1720217660184,0.17,134.79,134.77,7.4199]
[1720217660378,0.17,134.79,134.76,25.9713]
[1720217662194,13.64,134.79,134.76,25.9713]
[1720217664407,0.17,134.79,134.76,25.9713]
[1720217665084,0.17,134.79,134.77,7.4199]
[1720217666111,0.17,134.79,134.76,18.5508]
[1720217666112,0.17,134.79,134.76,25.9711]
[1720217668275,0.17,134.79,134.77,7.4199]
[1720217669008,0.17,134.79,134.78,7.4194]
[1720217669505,14.27935631,134.82,134.79,7.4189]
[1720217669709,14.27935631,134.82,134.78,39.4376]
[1720217669710,0.17,134.81,134.78,39.4376]
[1720217671010,0.17,134.81,134.78,32.0184]
[1720217671605,0.17,134.81,134.78,39.4378]
[1720217673013,0.17,134.81,134.78,25.9678]
[1720217677099,100.17,134.81,134.78,18.5484]
[1720217677308,113.64,134.81,134.78,18.5484]
[1720217677502,113.64,134.81,134.78,25.9677]
[1720217677832,0.17,134.81,134.78,25.9677]
[1720217678598,100.17,134.81,134.78,25.9677]
[1720217679422,113.64,134.81,134.78,25.9677]
[1720217681818,13.64,134.81,134.78,25.9677]
[1720217682205,0.17,134.81,134.78,25.9677]
[1720217683397,0.17,134.81,134.79,7.4189]
[1720217684623,0.17,134.81,134.78,18.5484]
[1720217684823,114.34616045,134.85,134.8,25.964]
[1720217685125,20.0,134.84,134.8,18.5458]
[1720217685516,33.47,134.84,134.8,25.9641]
[1720217686331,0.17,134.83,134.8,39.4339]
[1720217686507,20.0,134.84,134.8,39.4339]
[1720217688005,0.17,134.83,134.8,39.4339]
[1720217689125,7.75818695,134.85,134.82,20.8872]
[1720217689425,0.17,134.86,134.82,20.8872]
[1720217690129,0.17,134.86,134.82,13.47]
[1720217690525,20.17,134.86,134.82,13.47]
[1720217691413,20.17,134.86,134.81,7.4176]
[1720217691622,100.0,134.85,134.8,25.964]
[1720217691821,0.17,134.84,134.81,13.47]
[1720217692031,0.17,134.84,134.8,25.964]
[1720217692337,0.17,134.84,134.81,13.47]
[1720217693214,0.17,134.84,134.81,20.8877]
[1720217693427,0.17,134.85,134.81,20.8877]
[1720217693631,0.17,134.85,134.8,25.964]
[1720217693934,0.17,134.85,134.81,20.8877]
[1720217694243,0.17,134.85,134.81,13.47]
[1720217695328,0.17,134.85,134.82,13.47]
[1720217695709,26.94433415,134.86,134.82,13.47]
[1720217696745,26.94433415,134.86,134.82,20.8872]
[1720217696946,0.17,134.85,134.82,20.8872]
[1720217697245,26.94433415,134.86,134.82,13.47]
[1720217698045,26.94433415,134.86,134.82,20.887]
[1720217698356,0.17,134.85,134.82,20.887]
[1720217699629,26.94433415,134.86,134.83,7.4167]
[1720217700215,26.94433415,134.86,134.83,20.8867]
[1720217700422,7.75811698,134.87,134.85,20.8855]
[1720217700737,6.94433415,134.9,134.86,20.8849]
[1720217700950,6.4081,134.92,134.87,13.47]
[1720217701153,42.4641196,134.95,134.91,13.47]
[1720217701449,7.4091,134.97,134.92,13.47]
[1720217701741,113.19372381,134.98,134.92,13.47]
[1720217702250,0.2,134.99,134.97,20.8785]
[1720217702424,0.2,134.99,134.98,20.8785]
[1720217702738,0.2,134.99,134.98,65.4685]
[1720217703311,0.8673204,135.04,134.98,65.4685]
[1720217703516,0.1,135.09,135.08,7.403]
[1720217703731,0.1,135.09,135.08,20.873]
[1720217704246,0.1,135.09,135.07,18.5084]
[1720217704754,0.1,135.09,135.03,72.393]
[1720217704951,0.1,135.09,135.05,20.8746]
[1720217705245,0.1,135.09,135.03,18.513]
[1720217705246,0.1,135.09,135.06,31.98]
[1720217705427,0.1,135.09,135.08,20.873]
[1720217705931,0.1,135.09,135.08,7.403]
[1720217708020,0.1,135.09,135.06,18.51]
[1720217708219,0.1,135.09,135.07,7.4033]
[1720217708433,0.1,135.09,135.02,18.5151]
[1720217708730,100.1,135.09,135.02,25.921]
[1720217708942,107.5025,135.09,135.02,25.921]
[1720217709137,100.0,135.06,135.0,7.407]
[1720217709343,0.17,135.05,135.0,7.407]
[1720217709522,100.0,135.08,135.03,7.4057]
[1720217709726,0.1,135.09,135.05,7.4044]
[1720217710367,0.1,135.09,135.04,7.405]
[1720217711028,0.1,135.09,135.05,7.4046]
[1720217711735,0.1,135.09,135.04,7.405]
[1720217713172,100.0,135.06,135.0,18.518]
[1720217713334,0.17,135.05,135.0,25.9252]
[1720217713744,0.17,135.05,135.01,7.4066]
[1720217714056,0.17,135.06,135.01,7.4066]
[1720217714257,0.17,135.06,135.0,18.518]
[1720217715149,0.17,135.06,135.01,7.4066]
[1720217715577,100.0,135.05,134.97,18.5218]
[1720217715777,100.0,135.02,134.97,25.9307]
[1720217716065,0.17,135.01,134.97,25.9307]
[1720217716268,107.5753,135.04,134.98,7.4084]
[1720217716757,107.5753,135.04,134.97,18.5218]
[1720217717145,107.5753,135.04,134.97,25.9304]
[1720217717327,100.17,135.04,134.97,18.5218]
[1720217717527,6.5328,135.07,134.94,44.51]
[1720217717755,6.5328,135.07,135.03,7.4057]
[1720217717954,6.5328,135.07,134.97,44.51]
[1720217718241,6.5328,135.07,135.03,18.5132]
[1720217718735,0.1,135.09,135.04,7.4047]
[1720217719054,100.0,135.08,135.03,18.5132]
[1720217719245,100.0,135.08,135.02,7.4062]
[1720217719640,0.1,135.09,135.02,7.4062]
[1720217719835,27.5026,135.09,135.03,7.4056]
[1720217720158,20.1,135.09,135.03,7.4056]
[1720217720360,0.17,135.08,135.05,7.4045]
[1720217720562,0.1,135.09,135.05,7.4045]
[1720217720869,0.1,135.09,135.04,25.9175]
[1720217721348,0.1,135.09,135.05,7.4045]
[1720217721560,0.1,135.09,135.06,18.5095]
[1720217721747,0.1,135.09,135.07,7.4031]
[1720217722060,0.1,135.09,135.08,7.403]
[1720217722844,0.1,135.09,135.07,7.4034]
[1720217723041,0.1,135.09,135.06,25.9134]
[1720217725246,0.1,135.09,135.07,7.4034]
[1720217725662,0.1,135.09,135.08,7.403]
[1720217729572,108.2655204,135.17,135.16,7.3986]
[1720217729573,0.8673204,135.17,135.16,7.3986]
[1720217738568,0.8673204,135.17,135.15,18.4975]
[1720217738776,0.8673204,135.17,135.12,18.5012]
[1720217739075,0.8673204,135.17,135.14,18.4989]
[1720217739383,0.8673204,135.17,135.16,7.3986]
[1720217740349,0.8673204,135.17,135.15,7.3989]
[1720217740656,0.8673204,135.17,135.14,18.4989]
[1720217741766,0.8673204,135.17,135.16,7.3986]
[1720217748885,0.8673204,135.17,135.16,51.9086]
[1720217749074,0.8673204,135.17,135.16,52.0786]
[1720217749484,2.04e-05,135.17,135.16,52.0786]
[1720217750694,2.04e-05,135.17,135.16,51.9086]
[1720217752762,2.04e-05,135.17,135.16,52.0786]
[1720217754084,2.04e-05,135.17,135.16,51.9086]
[1720217754285,2.04e-05,135.17,135.16,7.3986]
[1720217754597,2.04e-05,135.17,135.15,7.399]
[1720217754803,2.04e-05,135.17,135.16,7.3986]
[1720217757585,2.04e-05,135.17,135.14,25.8984]
[1720217757787,2.04e-05,135.17,135.14,18.4989]
[1720217758164,2.04e-05,135.17,135.14,25.8981]
[1720217758368,2.04e-05,135.17,135.14,18.4989]
[1720217759279,2.04e-05,135.17,135.16,7.3986]
[1720217763296,2.04e-05,135.17,135.16,51.9086]
[1720217763496,2.04e-05,135.17,135.16,78.7286]
[1720217764400,2.04e-05,135.17,135.16,7.3986]
[1720217766598,2.04e-05,135.17,135.16,51.9086]
[1720217766980,0.1,135.29,135.28,7.392]
[1720217767800,0.1,135.29,135.28,8.2965306]
[1720217767977,15.2352204,135.32,135.29,18.4781]
[1720217768486,15.2352204,135.32,135.31,7.3904]
[1720217769509,6.1787,135.34,135.31,7.3904]
[1720217770074,6.1787,135.34,135.3,7.3908]
[1720217770275,106.1787,135.34,135.29,25.8694]
[1720217770493,6.1787,135.34,135.3,7.3907]
[1720217770886,106.1787,135.34,135.29,25.8695]
[1720217771084,15.2679,135.33,135.29,25.8695]
[1720217771498,15.2679,135.33,135.23,44.51]
[1720217771680,0.17,135.32,135.26,18.482]
[1720217771878,0.17,135.32,135.27,7.3921]
[1720217772078,15.2679,135.33,135.28,7.3918]
[1720217772282,0.17,135.32,135.28,7.3918]
[1720217772595,0.17,135.32,135.27,7.3924]
[1720217773405,0.17,135.32,135.28,7.392]
[1720217775384,100.17,135.32,135.28,7.392]
[1720217775900,0.17,135.32,135.28,7.392]
[1720217776589,15.2679,135.33,135.29,7.391]
[1720217777107,15.2679,135.33,135.28,25.8707]
[1720217777482,22.6573,135.33,135.27,7.3925]
[1720217777683,15.2679,135.33,135.3,25.8674]
[1720217777981,15.2679,135.33,135.3,18.4769]
[1720217778710,15.2679,135.33,135.3,25.8677]
[1720217780212,15.2679,135.33,135.29,7.3914]
[1720217780504,0.17,135.32,135.27,18.4805]
[1720217781012,100.17,135.32,135.27,18.4805]
[1720217781594,0.17,135.32,135.27,18.4805]
[1720217781799,100.17,135.32,135.27,25.873]
[1720217782210,0.17,135.32,135.29,7.3915]
[1720217782516,0.17,135.32,135.27,18.4805]
[1720217782688,15.2679,135.33,135.29,18.4776]
[1720217784317,15.2679,135.33,135.3,7.3906]
[1720217785609,15.2679,135.33,135.31,7.3903]
[1720217785814,6.1787,135.34,135.31,7.3903]
[1720217786113,6.1787,135.34,135.32,7.3898]
[1720217786826,100.0,135.36,135.32,7.3898]
[1720217787209,6.6254,135.37,135.27,44.51]
[1720217787534,6.6254,135.37,135.35,18.4695]
[1720217788032,6.6254,135.37,135.35,25.8575]
[1720217788199,0.1,135.39,135.37,7.387]
[1720217788399,0.1,135.39,135.37,7.3866]
[1720217788634,0.1,135.39,135.38,7.3866]
[1720217789919,0.1,135.39,135.38,51.8966]
[1720217791302,0.1,135.39,135.38,52.0666]
[1720217791893,0.1,135.39,135.38,51.8966]
[1720217792096,0.1,135.39,135.36,7.3875]
[1720217792316,0.1,135.39,135.37,7.387]
[1720217793327,0.1,135.39,135.36,25.8557]
[1720217793529,0.1,135.39,135.37,7.3871]
[1720217794215,0.1,135.39,135.38,7.3866]
[1720217794932,0.1,135.39,135.38,51.8966]
[1720217795308,0.1,135.39,135.38,7.3866]
[1720217795641,0.1,135.39,135.38,51.8966]
[1720217797539,0.1,135.39,135.38,52.0666]
[1720217797833,0.1,135.39,135.38,51.8966]
[1720217799820,0.1,135.39,135.38,52.0666]
[1720217800972,0.1,135.39,135.38,74.3766]
[1720217800973,0.0001,135.39,135.38,74.3766]
[1720217801232,0.8673204,135.44,135.43,70.3535]
[1720217802012,2.04e-05,135.44,135.43,70.3535]
[1720217802343,2.04e-05,135.44,135.43,86.1547]
[1720217804038,2.04e-05,135.44,135.43,70.3535]
[1720217805434,2.04e-05,135.44,135.43,70.5235]
[1720217805747,2.04e-05,135.44,135.43,90.5235]
[1720217806733,2.04e-05,135.44,135.43,70.5235]
[1720217806911,2.04e-05,135.44,135.43,70.3535]
[1720217808208,2.04e-05,135.44,135.43,70.5235]
[1720217808444,2.04e-05,135.44,135.43,70.3535]
[1720217809637,2.04e-05,135.44,135.43,70.5235]
[1720217810355,2.04e-05,135.44,135.38,44.51]
[1720217810656,6.1988204,135.44,135.43,7.3838]
[1720217812815,6.1988204,135.44,135.42,18.4602]
[1720217813307,6.1988204,135.44,135.35,44.51]
[1720217813515,6.1988204,135.44,135.41,18.4619]
[1720217813737,6.1988204,135.44,135.38,18.4655]
[1720217813939,6.1988204,135.44,135.39,7.3856]
[1720217814141,0.17,135.43,135.39,7.3856]
[1720217814339,121.6957,135.42,135.35,18.4699]
[1720217814513,0.17,135.41,135.35,18.4699]
[1720217814714,0.17,135.41,135.35,25.8578]
[1720217814916,0.17,135.41,135.35,18.4699]
[1720217815109,0.17,135.41,135.36,7.3873]
[1720217815407,0.17,135.41,135.37,18.4673]
[1720217815611,21.6957,135.42,135.29,66.82]
[1720217815835,21.6957,135.42,135.4,7.3854]
[1720217816029,21.6957,135.42,135.41,7.3849]
[1720217816722,6.1988,135.42,135.41,7.3849]
[1720217817453,6.1988,135.42,135.4,7.3854]
[1720217817833,6.1988,135.42,135.41,7.3849]
[1720217819726,2.04e-05,135.44,135.39,7.3859]
[1720217819927,2.04e-05,135.44,135.39,25.8505]
[1720217820242,6.1988,135.42,135.36,18.4691]
[1720217820443,0.17,135.41,135.37,7.3871]
[1720217820746,0.17,135.41,135.24,15.7489]
[1720217820747,100.0,135.38,135.24,15.7489]
[1720217821054,6.1988,135.39,135.34,7.3886]
[1720217821265,20.17,135.38,135.34,7.3886]
[1720217821836,20.17,135.38,135.25,22.31]
[1720217822029,20.17,135.38,135.34,7.3884]
[1720217822257,6.1988,135.39,135.35,7.388]
[1720217822428,0.17,135.38,135.34,7.3886]
[1720217822829,0.17,135.38,135.35,7.3881]
[1720217823532,0.17,135.38,135.34,7.3886]
[1720217823947,100.17,135.38,135.33,18.4726]
[1720217824144,107.5566,135.38,135.33,18.4726]
[1720217824367,100.17,135.38,135.33,25.8618]
[1720217824532,0.17,135.38,135.34,7.3884]
[1720217825045,6.1988,135.39,135.24,68.1089]
[1720217825237,6.1988,135.39,135.38,7.3866]
[1720217825757,6.1988,135.39,135.37,25.8543]
[1720217826657,6.1988,135.39,135.38,7.3866]
[1720217826876,6.1988,135.39,135.37,25.8543]
[1720217827236,22.2244,135.43,135.39,18.4645]
[1720217827859,6.4481,135.43,135.42,7.3844]
[1720217828563,6.4481,135.43,135.4,7.3854]
[1720217828860,6.4481,135.43,135.4,18.4632]
[1720217829330,6.4481,135.43,135.41,7.3849]
[1720217829535,6.4481,135.43,135.4,18.4632]
[1720217829536,6.4481,135.43,135.4,25.8486]
[1720217829946,6.4481,135.43,135.41,7.3848]
[1720217830162,6.4481,135.43,135.42,7.3844]
[1720217831460,6.4481,135.43,135.37,18.4676]
[1720217831672,6.4481,135.43,135.39,18.4646]
[1720217831849,6.4481,135.43,135.4,7.385]
[1720217832049,6.4481,135.43,135.39,18.4646]
[1720217832260,6.4481,135.43,135.4,7.3851]
[1720217832654,6.4481,135.43,135.39,18.4646]
[1720217832846,0.1700204,135.44,135.41,18.4619]
[1720217832847,2.04e-05,135.44,135.41,18.4619]
[1720217833051,2.04e-05,135.44,135.43,7.3838]
[1720217836359,2.04e-05,135.44,135.43,52.0638]
[1720217836847,2.04e-05,135.44,135.43,51.8938]
[1720217837367,2.04e-05,135.44,135.43,52.0638]
[1720217839847,2.04e-05,135.44,135.43,51.8938]
[1720217840575,2.04e-05,135.44,135.43,52.0638]
[1720217841259,2.04e-05,135.44,135.43,53.53690061]
[1720217841570,2.04e-05,135.44,135.43,7.3838]
[1720217842654,2.04e-05,135.44,135.43,51.8938]
[1720217844570,2.04e-05,135.44,135.43,7.3838]
[1720217847445,2.04e-05,135.44,135.43,51.8938]
[1720217848941,2.04e-05,135.44,135.43,52.0638]
[1720217849256,2.04e-05,135.44,135.43,51.8938]
[1720217850583,4.014e-05,135.45,135.44,85.7155]
[1720217850780,4.014e-05,135.45,135.44,85.8855]
[1720217852194,4.014e-05,135.45,135.44,85.7155]
[1720217852639,4.014e-05,135.45,135.44,85.8855]
[1720217853259,4.014e-05,135.45,135.44,108.1955]
[1720217853582,6.8803204,135.57,135.48,44.51]
[1720217853750,6.8803204,135.57,135.56,7.3768]
[1720217857978,6.8803204,135.57,135.53,7.3782]
[1720217858503,6.8803204,135.57,135.54,7.3778]
[1720217858793,6.8803204,135.57,135.55,7.3772]
[1720217859754,6.8803204,135.57,135.54,25.8218]
[1720217859953,106.8803204,135.57,135.51,25.8272]
[1720217860194,100.0,135.53,135.4,15.3639]
[1720217860361,20.17,135.52,135.4,15.3639]
[1720217860566,6.013,135.5,135.45,18.4569]
[1720217860899,6.013,135.5,135.45,25.8396]
[1720217861687,6.013,135.5,135.46,7.3821]
[1720217861895,6.013,135.5,135.48,7.3811]
[1720217862704,6.013,135.5,135.47,25.8349]
[1720217862991,6.013,135.5,135.46,7.3821]
[1720217863309,6.013,135.5,135.44,18.4574]
[1720217863486,6.013,135.5,135.45,7.3824]
[1720217863809,6.013,135.5,135.47,7.3816]
[1720217864199,6.013,135.5,135.46,25.8372]
[1720217864794,6.013,135.5,135.46,18.4552]
[1720217865109,6.013,135.5,135.49,7.3806]
[1720217865493,22.1814,135.54,135.5,18.4494]
[1720217867085,22.1814,135.54,135.49,7.3804]
[1720217867290,29.5593,135.54,135.48,7.3811]
[1720217868229,29.5593,135.54,135.42,44.51]
[1720217868230,22.1814,135.54,135.49,18.4505]
[1720217868712,22.1814,135.54,135.51,7.3791]
[1720217869704,22.1814,135.54,135.53,7.3784]
[1720217869902,22.1814,135.54,135.51,25.8276]
[1720217870488,22.1814,135.54,135.51,18.4482]
[1720217871094,22.1814,135.54,135.5,7.3799]
[1720217871817,22.1814,135.54,135.51,7.3793]
[1720217872116,22.1814,135.54,135.52,7.3789]
[1720217872901,22.1814,135.54,135.51,7.3793]
[1720217874311,22.1814,135.54,135.52,7.3788]
[1720217874512,6.013,135.54,135.43,66.82]
[1720217874726,7.3190204,135.57,135.56,25.8188]
[1720217875093,0.8673204,135.57,135.56,25.8188]
[1720217877102,0.8673204,135.57,135.56,70.3288]
[1720217879319,0.1,135.59,135.58,51.8857]
[1720217879520,0.1,135.59,135.58,44.51]
[1720217879811,0.1,135.59,135.58,51.8857]
[1720217880206,0.1,135.59,135.56,18.442]
[1720217881019,0.1,135.59,135.56,25.8186]
[1720217881198,100.0,135.55,135.42,44.51]
[1720217881520,22.1168,135.53,135.42,44.51]
[1720217882202,129.4953,135.53,135.46,7.3818]
[1720217882402,0.17,135.52,135.47,7.3816]
[1720217882707,0.17,135.52,135.48,7.381]
[1720217883313,0.17,135.52,135.47,7.3816]
[1720217883828,0.17,135.52,135.42,44.51]
[1720217884003,0.17,135.52,135.48,7.3811]
[1720217884323,0.17,135.52,135.47,7.3816]
[1720217884823,100.0,135.51,135.47,7.3816]
[1720217885206,0.17,135.52,135.49,7.3804]
[1720217885404,22.1168,135.53,135.5,7.3796]
[1720217885719,22.1168,135.53,135.42,44.51]
[1720217885720,22.1168,135.53,135.48,7.3806]
[1720217886326,100.17,135.52,135.48,7.3806]
[1720217886829,100.17,135.52,135.47,7.3812]
[1720217887430,100.17,135.52,135.48,7.381]
[1720217887431,0.17,135.52,135.48,7.381]
[1720217887928,22.1168,135.53,135.52,7.3789]
[1720217888136,22.1168,135.53,135.49,7.3802]
[1720217888315,22.1168,135.53,135.5,7.38]
[1720217888512,22.1168,135.53,135.42,44.51]
[1720217889020,22.1168,135.53,135.5,7.3796]
[1720217889706,22.1168,135.53,135.51,7.3795]
[1720217889934,22.1168,135.53,135.5,7.3799]
[1720217890095,22.1168,135.53,135.51,7.3794]
[1720217890302,22.1168,135.53,135.42,44.51]
[1720217890634,22.1168,135.53,135.51,7.3794]
[1720217892006,6.3771,135.53,135.52,7.3789]
[1720217893003,6.5244,135.57,135.56,7.3768]
[1720217893518,0.1,135.59,135.58,7.3757]
[1720217895830,0.1,135.59,135.58,51.8857]
[1720217896719,0.1,135.59,135.58,7.3757]
[1720217898537,0.1,135.59,135.58,51.8857]
[1720217899234,0.1,135.59,135.58,7.3757]
[1720217902540,6.6098,135.59,135.56,7.3766]
[1720217902847,6.6098,135.59,135.56,7.3767]
[1720217903308,6.6098,135.59,135.57,7.3761]
[1720217903725,6.6098,135.59,135.58,7.3757]
[1720217904653,6.6098,135.59,135.57,7.376]
[1720217904845,100.17,135.58,135.45,16.3348]
[1720217905050,6.6098,135.59,135.45,16.3348]
[1720217905209,6.6098,135.59,135.55,7.377]
[1720217905750,6.6098,135.59,135.53,7.3782]
[1720217905751,100.17,135.58,135.53,7.3782]
[1720217907035,100.17,135.58,135.46,44.51]
[1720217907277,100.0,135.54,135.49,7.3805]
[1720217907547,6.7258,135.53,135.49,7.3805]
[1720217908925,100.0,135.52,135.42,44.51]
[1720217909122,6.7258,135.53,135.48,7.3806]
[1720217909319,6.7258,135.53,135.49,7.3806]
[1720217909514,6.7258,135.53,135.48,7.3811]
[1720217910458,6.7258,135.53,135.42,44.51]
[1720217910459,107.3799,135.51,135.44,7.3829]
[1720217910747,100.0,135.49,135.44,7.3829]
[1720217910918,0.17,135.5,135.45,7.3827]
[1720217911115,100.0,135.51,135.45,7.3826]
[1720217911433,100.0,135.49,135.37,44.51]
[1720217911732,0.17,135.48,135.37,44.51]
[1720217911932,0.17,135.48,135.42,7.3842]
[1720217911933,100.0,135.47,135.42,7.3842]
[1720217912321,6.7258,135.46,135.42,7.3842]
[1720217912528,6.7258,135.46,135.43,7.3836]
[1720217912529,6.5558,135.46,135.43,7.3836]
[1720217914051,6.36068363,135.46,135.43,7.3836]
[1720217915042,6.36068363,135.46,135.44,7.3833]
[1720217915941,6.36068363,135.46,135.45,7.3827]
[1720217916140,107.3788,135.53,135.47,7.3815]
[1720217916342,100.0,135.51,135.46,7.3822]
[1720217916542,0.17,135.5,135.46,7.3822]
[1720217916727,100.0,135.49,135.37,44.51]
[1720217917132,6.5558,135.48,135.37,44.51]
[1720217918455,6.5558,135.48,135.44,7.3829]
[1720217918657,100.0,135.46,135.37,44.51]
[1720217918862,100.0,135.46,135.42,7.384]
[1720217919360,0.17,135.45,135.36,15.3015]
[1720217919529,0.17,135.45,135.41,7.3845]
[1720217920139,0.17,135.45,135.39,7.3859]
[1720217920359,100.0,135.44,135.4,7.3851]
[1720217920763,0.17,135.43,135.38,7.3861]
[1720217921054,6.5558,135.42,135.4,7.3853]
[1720217921254,6.5558,135.42,135.33,44.51]
[1720217921444,6.5558,135.42,135.39,7.3859]
[1720217921632,6.5558,135.42,135.4,7.3849]
[1720217921831,6.5558,135.42,135.33,44.51]
[1720217922464,6.5558,135.42,135.4,7.3853]
[1720217922663,6.5558,135.42,135.32,59.8115]
[1720217922969,0.17,135.41,135.32,59.8115]
[1720217923279,116.0171,135.4,135.34,7.3886]
[1720217923475,100.0,135.35,135.24,0.8673204]
[1720217923639,100.0,135.35,135.3,7.3908]
[1720217923962,0.17,135.34,135.3,7.3908]
[1720217924167,0.17,135.34,135.31,7.3903]
[1720217924345,0.17,135.34,135.24,0.8673204]
[1720217924676,0.17,135.34,135.31,7.3903]
[1720217925355,0.17,135.34,135.32,7.3897]
[1720217926669,6.5558,135.39,135.38,7.3866]
[1720217927041,6.5558,135.39,135.37,7.387]
[1720217927372,6.5558,135.39,135.38,7.3866]
[1720217927841,6.5558,135.39,135.3,15.3015]
[1720217928163,6.5558,135.39,135.36,7.3876]
[1720217928465,6.5558,135.39,135.38,7.3866]
[1720217928839,6.5558,135.39,135.3,15.3015]
[1720217929057,100.0,135.38,135.33,7.3892]
[1720217930048,0.17,135.37,135.34,7.3887]
[1720217930471,6.5558,135.39,135.37,7.387]
[1720217930647,6.5558,135.39,135.36,7.3875]
[1720217930839,6.5558,135.39,135.25,118.807]
[1720217931044,6.5558,135.39,135.36,7.3876]
[1720217931273,6.5558,135.39,135.34,7.3887]
[1720217931569,6.5558,135.39,135.35,7.3877]
[1720217933304,106.5558,135.39,135.33,7.3889]
[1720217933457,0.17,135.38,135.33,7.3889]
[1720217933638,0.17,135.38,135.34,7.3887]
[1720217934780,6.5558,135.39,135.26,66.99]
[1720217934945,6.5558,135.39,135.35,7.3878]
[1720217935151,100.0,135.36,135.31,7.3903]
[1720217935497,100.0,135.36,135.26,44.51]
[1720217935498,0.17,135.35,135.26,44.51]
[1720217935644,106.0827,135.33,135.21,36.7862]
[1720217935847,0.17,135.32,135.28,7.3915]
[1720217936357,0.17,135.32,135.21,36.7862]
[1720217936358,100.0,135.31,135.27,7.3925]
[1720217936560,0.17,135.3,135.27,7.3925]
[1720217936774,0.17,135.3,135.28,7.3918]
[1720217936967,106.0827,135.33,135.29,7.3915]
[1720217937184,0.17,135.32,135.3,7.3909]
[1720217937566,0.17,135.32,135.31,7.3904]
[1720217937766,0.17,135.32,135.22,44.51]
[1720217938081,0.17,135.32,135.27,7.3921]
[1720217938082,100.0,135.31,135.27,7.3921]
[1720217938305,0.17,135.32,135.22,44.51]
[1720217938475,0.17,135.32,135.28,7.3917]
[1720217938886,0.17,135.32,135.28,7.3919]
[1720217939592,0.17,135.32,135.29,7.3914]
[1720217940482,0.17,135.32,135.21,15.4006]
[1720217940483,100.0,135.31,135.21,15.4006]
[1720217940820,6.0827,135.26,135.22,7.3948]
[1720217941105,100.0,135.25,135.21,7.4957]
[1720217941395,100.17,135.25,135.21,7.4957]
[1720217941892,0.17,135.25,135.24,8.2615204]
[1720217942189,6.0827,135.26,135.24,8.2615204]
[1720217942391,0.17,135.25,135.24,0.8673204]
[1720217943282,6.0827,135.26,135.24,8.2615204]